bitfinex-derivatives/quotes_ETHF0:USTF0_20250926
["timestamp","ask_amount","ask_price","bid_price","bid_amount"]
[1758902374831,0.0253,3948.0,3947.9,0.61266]
[1758902375136,0.3366,3948.0,3947.9,0.87366]
[1758902375337,0.33915436,3948.0,3947.9,0.87366]
[1758902376035,0.47195436,3948.0,3947.9,0.71666]
[1758902376931,0.13535436,3948.0,3947.4,3.2078]
[1758902377123,0.4441,3947.5,3947.4,3.66351]
[1758902377329,0.4441,3947.5,3947.4,3.92451]
[1758902378526,0.4441,3947.5,3947.4,3.66351]
[1758902378728,0.4441,3947.5,3947.4,3.92451]
[1758902379228,0.44665436,3948.0,3947.9,0.45566]
[1758902379430,0.00255436,3948.0,3947.9,0.87366]
[1758902379938,0.31385436,3948.0,3947.9,0.71666]
[1758902380234,0.44665436,3948.0,3947.9,0.71666]
[1758902380933,0.44665436,3948.0,3947.9,0.87376]
[1758902381128,0.31385436,3948.0,3947.9,0.87376]
[1758902381435,0.44255436,3948.0,3947.9,0.71666]
[1758902381736,0.45505436,3948.0,3947.9,0.71666]
[1758902382126,0.1287,3947.5,3947.0,3.2078]
[1758902382332,0.1287,3947.5,3947.2,0.45574]
[1758902382333,0.58441,3947.5,3947.2,0.45574]
[1758902382628,0.3238,3947.4,3947.3,0.45573]
[1758902383837,0.3238,3947.4,3947.3,0.61283]
[1758902384940,0.3238,3947.4,3947.3,0.45573]
[1758902385737,0.3238,3947.4,3947.1,0.261]
[1758902385738,3.33905436,3948.0,3947.4,0.1571]
[1758902385933,0.77947,3947.8,3947.7,0.45567]
[1758902386141,0.41302483,3947.8,3947.7,0.45567]
[1758902386834,0.86869483,3947.8,3947.7,0.45567]
[1758902387032,0.41302483,3947.8,3947.7,0.45567]
[1758902388835,0.41302483,3947.8,3947.7,0.61277]
[1758902389031,0.54490483,3947.8,3947.5,0.261]
[1758902389233,0.41308877,3947.7,3947.6,0.45569]
[1758902389737,0.86876877,3947.7,3947.6,0.45569]
[1758902389932,0.1287,3947.5,3946.8,1.13947]
[1758902390141,0.4525,3947.0,3946.6,3.2078]
[1758902390339,0.3238,3946.9,3946.8,0.45579]
[1758902392433,3.3365,3947.5,3947.1,1.13938]
[1758902392639,0.3238,3947.3,3947.2,0.71674]
[1758902392833,0.41314561,3947.3,3947.2,0.71674]
[1758902394741,0.86887561,3947.3,3947.2,0.261]
[1758902395334,0.45575,3947.1,3947.0,0.45576]
[1758902395541,0.86889561,3947.1,3947.0,0.71676]
[1758902396342,0.41314561,3947.1,3947.0,0.71676]
[1758902397941,0.86889561,3947.1,3947.0,0.71676]
[1758902399245,0.86889561,3947.1,3947.0,0.261]
[1758902399746,1.40040877,3947.1,3947.0,0.71676]
[1758902400150,1.40040877,3947.1,3947.0,0.261]
[1758902400351,1.40040877,3947.1,3946.2,1.13964]
[1758902400352,5.3238,3947.1,3946.1,3.2078]
[1758902400542,3.2078,3947.0,3946.2,0.1571]
[1758902400748,0.08949984,3946.9,3946.2,0.1571]
[1758902400943,0.41329984,3946.8,3946.2,0.1571]
[1758902401146,0.1287,3946.5,3946.2,0.1571]
[1758902401345,0.3238,3946.4,3946.1,3.2078]
[1758902401547,0.3238,3946.4,3946.2,0.1571]
[1758902401742,0.5485,3946.4,3946.3,0.4502]
[1758902401951,0.5485,3946.4,3946.3,0.7112]
[1758902402148,0.84976742,3946.4,3945.9,1.35818574]
[1758902402349,0.5485,3945.7,3945.6,5.01618574]
[1758902402647,0.5485,3945.7,3945.6,5.47210574]
[1758902402955,0.84976775,3945.7,3945.6,3.92472]
[1758902403248,0.7603,3945.7,3945.6,0.93982]
[1758902403450,0.7603,3945.7,3945.6,0.4839]
[1758902403646,0.7603,3945.7,3945.6,0.261]
[1758902404355,1.30555695,3945.7,3945.6,0.261]
[1758902405248,0.84964695,3945.7,3945.6,0.261]
[1758902405455,0.84964695,3945.7,3945.6,0.71692]
[1758902405656,0.84964695,3945.7,3945.6,0.261]
[1758902405852,1.21625,3945.4,3945.3,0.00235605]
[1758902406056,0.45602,3944.8,3944.3,4.56598574]
[1758902406249,0.7603,3944.4,3944.3,0.45607]
[1758902406556,0.5485,3944.4,3944.3,1.16727]
[1758902407060,0.32635674,3944.4,3944.3,1.16958645]
[1758902407257,0.00255674,3944.4,3944.3,1.32718645]
[1758902407558,0.32235674,3944.4,3944.3,1.32718645]
[1758902407759,0.54085674,3944.4,3944.3,1.16958645]
[1758902408566,0.00255674,3944.4,3944.3,4.53498645]
[1758902409461,0.3198,3945.2,3945.1,0.67468]
[1758902409662,0.3198,3945.2,3945.1,1.15068]
[1758902409856,0.5383,3944.6,3944.5,0.67475]
[1758902410058,0.5383,3944.6,3944.5,0.93575]
[1758902410459,0.6681,3945.0,3944.9,0.6791]
[1758902410661,0.67022964,3945.0,3944.9,1.1573]
[1758902410960,0.67022964,3945.0,3944.3,3.21011645]
[1758902410961,0.444,3944.8,3944.3,3.21011645]
[1758902411166,0.7584,3944.4,3944.3,3.66618645]
[1758902411367,0.00212964,3945.0,3944.8,0.5966]
[1758902411670,0.00212964,3945.0,3944.9,1.3136]
[1758902411968,0.31652964,3945.0,3944.9,40.6863]
[1758902412165,0.66912964,3945.0,3944.9,1.1573]
[1758902412467,0.00212964,3945.0,3944.9,1.3136]
[1758902413265,0.3144,3945.9,3945.8,0.679]
[1758902413469,0.7584,3945.9,3945.8,0.2172]
[1758902413669,0.5423,3945.4,3945.3,0.2231]
[1758902413871,0.7584,3945.4,3945.3,0.71696]
[1758902414060,0.7584,3945.4,3945.3,0.94006]
[1758902414369,0.00222267,3945.4,3945.3,1.31356]
[1758902414569,0.31662267,3945.4,3945.3,1.15726]
[1758902414877,0.00222267,3945.4,3945.3,1.31356]
[1758902415170,0.31662267,3945.4,3945.3,1.15726]
[1758902415565,0.54452267,3945.4,3945.3,1.15726]
[1758902416168,0.31662267,3945.4,3945.3,1.15726]
[1758902416373,0.31662267,3945.4,3945.3,1.31356]
[1758902416870,0.00222267,3945.4,3945.3,1.31356]
[1758902417068,0.3144,3945.3,3945.1,3.2078]
[1758902417275,0.00222267,3945.4,3945.3,1.05256]
[1758902417474,0.31662267,3945.4,3945.3,1.05256]
[1758902417869,0.00222267,3945.4,3945.3,6.05256]
[1758902418070,3.5475,3946.2,3946.1,0.89617]
[1758902418367,0.444,3945.9,3945.7,0.45591]
[1758902418567,0.7584,3945.9,3945.8,0.94]
[1758902418773,0.5423,3945.9,3945.8,1.1572]
[1758902418968,0.31668384,3945.9,3945.8,1.3113]
[1758902419177,0.31668384,3945.9,3945.8,1.1572]
[1758902419379,0.3144,3945.8,3945.7,0.45591]
[1758902419564,0.7584,3945.8,3945.7,0.261]
[1758902419769,0.7584,3945.8,3945.7,0.94001]
[1758902419980,0.5423,3945.8,3945.7,1.15721]
[1758902420277,1.2143,3945.8,3945.7,0.261]
[1758902420466,1.2143,3945.8,3945.7,0.71691]
[1758902420773,0.3144,3945.7,3945.1,3.2078]
[1758902420973,0.7584,3945.2,3945.1,3.88688]
[1758902421174,0.5423,3945.2,3945.1,4.36508]
[1758902421474,0.45603,3944.8,3944.6,1.35818574]
[1758902421667,0.4391,3944.5,3944.4,0.71706]
[1758902422071,0.4391,3944.5,3944.4,0.261]
[1758902422879,3.2331,3944.8,3944.4,0.4151]
[1758902423072,0.0253,3944.8,3944.7,0.61013]
[1758902423268,0.0253,3944.8,3944.7,0.87113]
[1758902423570,0.3397,3944.8,3944.7,0.71703]
[1758902423875,0.0253,3944.8,3944.7,0.87113]
[1758902424073,0.0253,3944.8,3944.7,5.87113]
[1758902426076,0.0253,3944.8,3944.7,0.87113]
[1758902426279,0.3397,3944.8,3944.7,0.87113]
[1758902426470,0.0253,3944.8,3944.7,0.61013]
[1758902426665,0.0253,3944.8,3944.7,40.40313]
[1758902426865,0.0253,3944.8,3944.7,0.61013]
[1758902427079,0.3397,3944.8,3944.7,40.24903]
[1758902427276,0.77043,3944.7,3944.5,0.45604]
[1758902427483,0.3144,3944.7,3944.6,0.71704]
[1758902427780,0.3144,3944.7,3944.6,3.92484]
[1758902428176,0.3144,3944.7,3944.6,3.4688]
[1758902428381,0.7584,3944.7,3944.6,0.4841]
[1758902428577,0.3144,3944.7,3944.6,0.7013]
[1758902429885,0.5423,3944.7,3944.6,0.942587]
[1758902430276,0.0253,3944.8,3944.6,1.096687]
[1758902430580,0.3397,3944.8,3944.7,0.89633]
[1758902430788,0.5676,3944.8,3944.7,0.89633]
[1758902431178,0.5676,3944.8,3944.7,1.15733]
[1758902431580,0.5676,3944.8,3944.7,0.71703]
[1758902431581,0.7837,3944.8,3944.7,0.71703]
[1758902431781,0.3397,3944.8,3944.7,1.15733]
[1758902432389,0.5676,3944.8,3944.7,1.15733]
[1758902433190,0.7837,3944.8,3944.7,0.71703]
[1758902433384,0.7837,3944.8,3944.7,1.15733]
[1758902433583,0.3397,3944.8,3944.7,1.31143]
[1758902433995,0.0253,3944.8,3944.7,1.31143]
[1758902435090,0.7837,3944.8,3944.7,0.94013]
[1758902435285,0.3397,3944.8,3944.7,1.15733]
[1758902435492,0.0253,3944.8,3944.7,1.31143]
[1758902435689,0.3144,3945.3,3944.7,1.31143]
[1758902435690,0.4391,3945.5,3945.4,0.89625]
[1758902435895,0.8831,3945.5,3945.4,0.94005]
[1758902436286,0.54458384,3945.9,3945.8,0.8962]
[1758902436589,0.54458384,3945.9,3945.8,1.1572]
[1758902436789,0.00228384,3945.9,3945.8,1.3113]
[1758902437495,0.76068384,3945.9,3945.8,1.1572]
[1758902437795,0.54458384,3945.9,3945.8,4.365]
[1758902439289,0.76068384,3945.9,3945.8,3.8868]
[1758902439488,0.44628384,3945.9,3945.5,1.1744]
[1758902439691,0.7584,3945.7,3945.6,0.71691]
[1758902440188,0.7584,3945.7,3945.6,0.45592]
[1758902440391,0.7584,3945.7,3945.6,0.261]
[1758902440691,1.21431,3945.7,3945.6,0.261]
[1758902440896,1.20892,3945.6,3945.5,1.1744]
[1758902441092,6.20892,3945.6,3945.5,1.1744]
[1758902441293,9.95045778,3945.6,3945.5,1.4354]
[1758902441690,0.4391,3944.7,3944.6,0.241287]
[1758902441893,0.4391,3944.7,3944.6,0.585987]
[1758902442100,0.77381954,3944.7,3944.6,0.585987]
[1758902442297,0.77381954,3944.7,3944.6,0.502287]
[1758902442494,0.77381954,3944.7,3944.6,0.846987]
[1758902442693,0.53401954,3944.7,3944.6,1.072187]
[1758902443194,0.09491954,3944.7,3944.6,1.283287]
[1758902443803,0.31271954,3944.7,3944.6,1.022287]
[1758902444302,0.31271954,3944.7,3944.6,1.283287]
[1758902444703,0.3126747,3944.7,3944.6,1.283287]
[1758902445099,0.0948747,3944.7,3944.6,1.283287]
[1758902445614,0.24208384,3945.9,3945.8,0.2252]
[1758902445615,0.22008384,3945.9,3945.8,0.2252]
[1758902445902,0.63333464,3945.9,3945.8,0.261]
[1758902446104,0.87313464,3945.9,3945.8,0.261]
[1758902446292,1.32902464,3945.9,3945.8,0.45591]
[1758902446497,1.32902464,3945.9,3945.8,1.06161]
[1758902446796,0.87313464,3945.9,3945.8,1.06161]
[1758902446991,0.0997934,3945.9,3945.8,1.06161]
[1758902447192,0.63331671,3945.9,3945.8,1.06161]
[1758902447396,0.0997934,3945.9,3945.8,1.06161]
[1758902447609,0.5556834,3945.9,3945.8,1.06161]
[1758902447901,0.5556834,3945.9,3945.2,0.45598]
[1758902447902,0.69578,3945.3,3945.2,0.45598]
[1758902448106,0.79328956,3945.3,3945.2,0.45598]
[1758902448302,0.79328956,3945.3,3945.2,0.71698]
[1758902448908,0.69578,3945.3,3945.2,0.71698]
[1758902449106,0.79330352,3945.3,3945.2,0.71698]
[1758902450309,0.79330352,3945.3,3945.2,1.06168]
[1758902450700,0.79330352,3945.3,3945.2,0.71698]
[1758902450903,1.23240352,3945.3,3945.2,0.71698]
[1758902451409,1.23240352,3945.3,3945.2,1.06168]
[1758902451609,1.23240352,3945.3,3945.2,0.261]
[1758902452111,1.23240352,3945.3,3945.2,0.71698]
[1758902452305,0.99260352,3945.3,3945.2,0.8309]
[1758902452707,0.4391,3944.9,3944.8,0.3447]
[1758902452907,0.53662352,3944.9,3944.8,1.06172]
[1758902453209,0.53662352,3944.9,3944.8,1.49802]
[1758902453507,0.77136822,3944.9,3944.8,1.49802]
[1758902453712,0.31535822,3944.9,3944.8,1.49802]
[1758902455300,0.09755822,3944.9,3944.8,1.042]
[1758902455504,0.77136822,3944.9,3944.8,1.042]
[1758902455701,1.23246822,3944.9,3944.8,0.6057]
[1758902455909,0.89513,3944.7,3944.6,0.241287]
[1758902456105,1.23248822,3944.7,3944.6,0.502287]
[1758902456302,1.76647874,3944.7,3944.6,0.502287]
[1758902456508,6.76647874,3944.7,3944.6,0.241287]
[1758902458408,1.76647874,3944.7,3944.6,0.241287]
[1758902460606,1.76647874,3944.7,3944.6,0.585987]
[1758902461007,1.52667874,3944.7,3944.6,0.811187]
[1758902461206,1.52667874,3944.7,3944.6,1.022287]
[1758902461417,1.52667874,3944.7,3944.6,1.478327]
[1758902461604,0.53665822,3944.7,3944.6,1.739327]
[1758902461804,0.09755822,3944.7,3944.6,1.739327]
[1758902462514,3.2078,3945.3,3945.2,0.2252]
[1758902462818,3.2078,3945.3,3945.2,1.042]
[1758902462819,3.30517501,3945.3,3945.2,1.042]
[1758902463013,0.09737501,3945.3,3945.2,1.49798]
[1758902463416,0.09737501,3945.3,3945.2,6.49798]
[1758902463715,0.48347384,3945.9,3945.8,0.781]
[1758902463917,0.58084505,3945.9,3945.8,1.042]
[1758902464516,0.12495505,3945.9,3945.8,1.042]
[1758902466018,0.56405505,3945.9,3945.8,0.5699]
[1758902466318,0.56405505,3945.9,3945.5,0.1375]
[1758902466319,0.4576,3945.7,3945.6,0.335]
[1758902466516,0.91358,3945.2,3945.1,0.335]
[1758902466720,4.45985121,3945.2,3944.6,0.241287]
[1758902467013,0.45603,3944.7,3944.6,0.241287]
[1758902467219,0.79450121,3944.7,3944.6,0.241287]
[1758902467418,0.79450121,3944.7,3944.6,0.502287]
[1758902467619,0.79450121,3944.7,3944.6,0.837287]
[1758902467813,0.79450121,3944.7,3944.6,0.502287]
[1758902468020,0.55340121,3944.7,3944.6,0.837287]
[1758902468519,0.79450121,3944.7,3944.6,0.241287]
[1758902468722,6.32781975,3944.7,3944.6,0.241287]
[1758902470322,0.45607,3944.4,3944.3,2.56751645]
[1758902470517,4.53565975,3944.4,3944.3,1.32321645]
[1758902470718,9.53565975,3944.4,3944.3,1.32321645]
[1758902471319,4.53565975,3944.4,3944.3,1.32321645]
[1758902471621,3.83848975,3944.4,3944.3,1.32321645]
[1758902471826,3.83848975,3944.4,3944.3,1.90111645]
[1758902472025,3.30517121,3944.4,3944.3,1.90111645]
[1758902473219,0.09737121,3944.4,3944.3,1.90111645]
[1758902473418,3.66381,3944.9,3944.3,1.58421645]
[1758902473419,0.09737121,3944.8,3944.3,1.58421645]
[1758902473621,0.09737121,3944.7,3944.6,0.45604]
[1758902473921,0.09737121,3944.7,3944.6,1.03394]
[1758902474225,0.45601,3944.9,3944.7,0.45603]
[1758902474425,0.09740239,3944.8,3944.7,0.77293]
[1758902476620,0.0253,3945.2,3945.1,0.45599]
[1758902476821,0.1236429,3945.2,3945.1,1.03389]
[1758902477020,0.0983429,3945.2,3945.1,1.03389]
[1758902477416,3.2078,3945.8,3945.7,0.77282]
[1758902477619,3.2078,3945.8,3945.7,1.03382]
[1758902477817,0.00228384,3945.9,3945.7,1.03382]
[1758902478026,0.00228384,3945.9,3945.8,0.3169]
[1758902478427,0.45817384,3945.9,3945.8,0.5779]
[1758902478818,0.45817384,3945.9,3945.8,0.3169]
[1758902479027,0.45817384,3945.9,3945.8,0.5779]
[1758902479224,0.00228384,3945.9,3945.8,0.5779]
[1758902479620,0.00228384,3945.9,3945.8,0.3169]
[1758902479923,0.45817384,3945.9,3945.8,0.3169]
[1758902480123,0.00228384,3945.9,3945.8,1.0338]
[1758902481621,0.45817384,3945.9,3945.8,1.0338]
[1758902481829,0.00228384,3945.9,3945.8,1.0338]
[1758902483127,3.2078,3946.2,3946.1,0.45587]
[1758902483426,3.2078,3946.2,3946.1,0.77277]
[1758902484026,0.0253,3946.4,3946.1,0.3169]
[1758902484229,0.48352559,3946.4,3946.3,0.45585]
[1758902484432,0.48352559,3946.4,3946.3,0.77275]
[1758902484633,0.45822559,3946.4,3946.3,0.77275]
[1758902484935,0.00237559,3946.4,3946.3,0.77275]
[1758902488335,0.00237559,3946.4,3946.3,1.19315]
[1758902489227,0.0253,3946.8,3946.7,0.4558]
[1758902489431,0.0253,3946.8,3946.7,6.74407265]
[1758902490225,0.02730017,3946.8,3946.7,6.74407265]
[1758902490533,3.3085,3949.0,3947.4,0.3169]
[1758902490735,3.3085,3949.0,3948.7,0.45556]
[1758902490736,0.09745639,3948.9,3948.7,0.45556]
[1758902490931,3.2078,3949.0,3948.9,0.3169]
[1758902491132,3.30524631,3949.0,3948.9,0.3169]
[1758902491435,3.30718698,3949.0,3948.9,0.31961791]
[1758902492140,3.30718698,3949.0,3948.9,5.60959056]
[1758902492340,3.20974067,3949.0,3948.9,5.60959056]
[1758902495540,3.20974067,3949.0,3948.9,5.87059056]
[1758902495744,3.20974067,3949.0,3948.9,6.29099056]
[1758902497140,3.20974067,3949.0,3948.9,6.02999056]
[1758902497341,3.98954067,3949.0,3948.9,0.31961791]
[1758902497538,3.55094067,3949.0,3948.9,0.00271791]
[1758902497734,3.55094067,3949.0,3948.9,0.26371791]
[1758902497931,3.55094067,3949.0,3948.9,0.00271791]
[1758902497932,8.66604067,3949.0,3948.9,0.00271791]
[1758902498139,8.76291362,3949.0,3948.9,0.00271791]
[1758902498335,0.79675,3948.9,3948.8,0.1987]
[1758902498641,0.4556,3948.4,3948.3,0.5779]
[1758902498843,3.6634,3948.4,3948.3,0.3169]
[1758902499029,8.6634,3948.4,3948.3,0.3169]
[1758902499237,8.76029762,3948.4,3948.3,0.31885354]
[1758902499540,3.76029762,3948.4,3948.3,0.31885354]
[1758902502748,3.30469762,3948.4,3948.3,0.31885354]
[1758902502939,3.30469762,3948.4,3948.3,0.77447354]
[1758902503141,3.2078,3948.4,3948.3,0.77447354]
[1758902503645,3.2078,3948.9,3948.6,1.13895]
[1758902503944,3.2078,3948.9,3948.8,6.06813265]
[1758902504244,0.00194067,3949.0,3948.9,0.77815]
[1758902504643,0.09907155,3949.0,3948.9,0.77815]
[1758902505145,0.00194067,3949.0,3948.9,0.77815]
[1758902505346,0.00194067,3949.0,3948.9,1.03915]
[1758902505552,0.09867797,3949.0,3948.9,1.03915]
[1758902505745,0.00194067,3949.0,3948.9,6.03915]
[1758902506352,0.00194067,3949.0,3948.9,1.03915]
[1758902506754,0.00194067,3949.0,3948.9,4.24695]
[1758902507656,3.2078,3949.7,3949.6,0.45547]
[1758902507856,3.30455986,3949.7,3949.6,1.03907]
[1758902508450,3.30455986,3949.7,3949.6,1.47107]
[1758902508650,3.30676334,3949.7,3949.6,1.47107]
[1758902509748,0.09896334,3949.7,3949.6,1.47107]
[1758902509944,3.2078,3950.1,3950.0,1.33902]
[1758902510147,3.30456998,3950.1,3950.0,6.88999265]
[1758902511054,3.30704714,3950.1,3950.0,6.88999265]
[1758902511252,0.09924714,3950.1,3950.0,11.88999265]
[1758902511458,0.00247716,3950.1,3950.0,11.88999265]
[1758902512161,3.2078,3950.6,3950.5,1.33896]
[1758902512363,3.30461859,3950.6,3950.5,6.88993265]
[1758902513060,3.30779214,3950.6,3950.5,6.88993265]
[1758902514460,0.09999214,3950.6,3950.5,6.88993265]
[1758902515260,0.09996675,3950.6,3950.5,6.88993265]
[1758902516968,0.09996675,3950.6,3950.5,1.33896]
[1758902517149,0.55531675,3950.6,3950.5,0.8836]
[1758902517461,3.76311675,3950.6,3950.5,0.7126]
[1758902517861,3.76311675,3950.6,3950.5,0.9359]
[1758902518162,3.30776675,3950.6,3950.5,1.59996]
[1758902518463,3.76311675,3950.6,3950.5,1.1446]
[1758902518964,3.76311675,3950.6,3950.5,0.7126]
[1758902519149,8.76311675,3950.6,3950.5,0.4516]
[1758902519463,9.29308252,3950.6,3950.5,0.4516]
[1758902520861,4.29308252,3950.6,3950.5,0.8836]
[1758902521064,4.29308252,3950.6,3950.5,1.59996]
[1758902521065,3.83773252,3950.6,3950.5,1.59996]
[1758902521256,4.29308252,3950.6,3950.5,1.1446]
[1758902521452,9.29308252,3950.6,3950.5,0.4516]
[1758902521663,9.29308252,3950.6,3950.5,0.129]
[1758902521969,0.45539,3950.3,3950.2,1.7214]
[1758902522157,0.5521832,3950.3,3950.2,1.7214]
[1758902522469,1.08214897,3950.3,3950.2,1.7214]
[1758902523057,6.08214897,3950.3,3950.2,1.7214]
[1758902523257,6.08214897,3950.3,3950.2,1.3988]
[1758902523562,0.45541,3950.1,3950.0,0.129]
[1758902523755,4.0210032,3950.1,3950.0,0.4516]
[1758902523955,9.55096897,3950.1,3950.0,0.4516]
[1758902524458,4.55096897,3950.1,3950.0,0.4516]
[1758902524653,4.28996897,3950.1,3950.0,0.6749]
[1758902524859,4.28996897,3950.1,3950.0,0.8836]
[1758902525262,4.28996897,3950.1,3950.0,1.33902]
[1758902525263,3.83455897,3950.1,3950.0,1.33902]
[1758902525467,3.3045932,3950.1,3950.0,0.90702]
[1758902525670,3.3045932,3950.1,3950.0,5.90702]
[1758902526061,0.0967932,3950.1,3950.0,5.90702]
[1758902526264,3.21097355,3950.6,3950.5,0.58676]
[1758902526465,3.30796656,3950.6,3950.5,1.15946]
[1758902526667,4.29377218,3950.6,3950.5,0.7041]
[1758902527664,4.29377218,3950.6,3950.5,0.4431]
[1758902531067,0.45541,3950.1,3950.0,0.129]
[1758902531269,4.02120301,3950.1,3950.0,1.2518]
[1758902531469,9.55165863,3950.1,3950.0,1.2518]
[1758902531971,9.55165863,3950.1,3950.0,0.56993935]
[1758902532171,4.55165863,3950.1,3950.0,0.56993935]
[1758902532365,4.29065863,3950.1,3950.0,0.56993935]
[1758902532866,4.29065863,3950.1,3950.0,0.4627]
[1758902533064,9.29065863,3950.1,3950.0,0.4627]
[1758902534571,4.29065863,3950.1,3950.0,0.4627]
[1758902534771,3.83524863,3950.1,3950.0,0.4627]
[1758902534972,3.83524863,3950.1,3950.0,1.17912]
[1758902535473,3.30479301,3950.1,3950.0,6.17912]
[1758902535764,0.00317355,3950.6,3950.5,0.91806]
[1758902535970,0.53532183,3950.6,3950.5,1.17906]
[1758902536569,0.53532183,3950.6,3950.5,6.17906]
[1758902537075,0.00317355,3950.6,3950.5,6.17906]
[1758902539079,3.2078,3952.3,3952.1,0.78987]
[1758902539270,0.53188389,3952.2,3952.1,0.3347]
[1758902539568,0.53188389,3952.2,3952.1,0.5957]
[1758902539970,0.53438184,3952.2,3952.1,0.33709552]
[1758902540166,0.53438184,3952.2,3952.1,0.59809552]
[1758902540367,0.00249795,3952.2,3952.1,0.59809552]
[1758902541162,0.00249795,3952.2,3952.1,0.33709552]
[1758902541362,0.00249795,3952.2,3952.1,0.59809552]
[1758902545463,0.00249795,3952.2,3952.1,0.33709552]
[1758902545670,5.00249795,3952.2,3952.1,0.33709552]
[1758902545870,5.53111647,3952.2,3952.1,0.33709552]
[1758902546377,0.00249795,3952.2,3952.1,0.33709552]
[1758902547270,0.45765795,3952.2,3952.1,0.33709552]
[1758902549681,0.00249795,3952.2,3952.1,0.33709552]
[1758902550174,0.45765795,3952.2,3952.1,0.33709552]
[1758902550685,0.00249795,3952.2,3952.1,0.33709552]
[1758902550871,0.45765795,3952.2,3952.1,0.59809552]
[1758902551379,0.45765795,3952.2,3952.1,0.33709552]
[1758902552472,5.45765795,3952.2,3952.1,0.33709552]
[1758902552781,5.71865795,3952.2,3952.1,0.33709552]
[1758902553277,0.71865795,3952.2,3952.1,0.33709552]
[1758902553876,1.24608085,3952.2,3952.1,0.33709552]
[1758902555977,0.98508085,3952.2,3952.1,0.33709552]
[1758902558080,0.00249795,3952.2,3952.1,0.79227552]
[1758902558678,3.2078,3952.8,3952.7,0.78981]
[1758902559283,0.022,3952.9,3952.8,0.3347]
[1758902559786,0.0244271,3952.9,3952.8,0.3347]
[1758902560381,3.2078,3953.3,3953.2,0.78975]
[1758902560577,0.05044125,3953.7,3953.5,0.45501]
[1758902560782,0.05044125,3953.7,3953.6,0.3179]
[1758902561483,0.05337163,3953.7,3953.6,0.3179]
[1758902562786,0.00293038,3953.7,3953.6,0.3179]
[1758902564181,0.00293038,3953.7,3953.6,0.5789]
[1758902564381,0.00293038,3953.7,3953.6,0.3179]
[1758902566184,5.53171962,3953.7,3953.6,0.3179]
[1758902566984,5.98670962,3953.7,3953.6,0.3179]
[1758902567287,0.98670962,3953.7,3953.6,0.3179]
[1758902567490,0.53171962,3953.7,3953.6,0.7729]
[1758902567784,0.00293038,3953.7,3953.6,0.7729]
[1758902568680,0.45792038,3953.7,3953.6,0.3179]
[1758902569886,0.98660587,3953.7,3953.6,0.3179]
[1758902572485,6.24660587,3953.7,3953.6,0.3179]
[1758902572687,0.45512,3952.6,3952.5,1.29801]
[1758902572989,4.45160549,3952.6,3952.5,0.1294]
[1758902573189,0.45523,3951.6,3951.5,0.1294]
[1758902573381,3.66303,3951.6,3951.5,0.1294]
[1758902573779,4.19146071,3951.6,3951.5,0.1294]
[1758902574195,4.19146071,3951.6,3951.5,0.13256185]
[1758902574686,3.73623071,3951.6,3951.5,0.45046185]
[1758902574888,3.2078,3951.6,3951.5,0.45046185]
[1758902576283,3.73628934,3951.6,3951.5,0.45046185]
[1758902579891,3.73628934,3951.6,3951.5,1.85e-06]
[1758902580088,8.73628934,3951.6,3951.5,1.85e-06]
[1758902580285,0.45527,3951.3,3951.2,0.81629185]
[1758902580489,0.45534,3950.7,3950.6,0.3179]
[1758902580794,0.45541,3950.1,3949.5,0.1294]
[1758902581097,4.19169934,3950.1,3949.5,0.1294]
[1758902581393,3.66612106,3950.1,3950.0,0.13200774]
[1758902581592,4.19503147,3950.1,3950.0,0.13200774]
[1758902581899,0.45547,3949.6,3949.5,0.1294]
[1758902582094,3.66327,3949.6,3949.5,0.1294]
[1758902582793,3.66327,3949.6,3949.5,0.4473]
[1758902582992,3.66327,3949.6,3949.5,0.44923368]
[1758902583692,3.2078,3949.6,3949.5,0.44923368]
[1758902585792,3.21071106,3950.1,3950.0,0.4473]
[1758902586793,3.21071106,3950.1,3950.0,0.4666]
[1758902588097,3.21071106,3950.1,3950.0,5.7276]
[1758902588604,1.80322623,3952.7,3952.4,0.3372]
[1758902588901,3.2078,3953.6,3952.5,0.3434]
[1758902589092,0.45504,3953.3,3953.0,0.1344]
[1758902589496,0.45682873,3953.3,3953.0,0.13635007]
[1758902589697,0.00178873,3953.3,3953.1,0.3372]
[1758902589901,0.00178873,3953.3,3953.2,0.3372]
[1758902590296,0.00178873,3953.3,3953.2,0.6032]
[1758902590897,3.66273,3954.3,3953.6,0.45499]
[1758902591097,3.2078,3954.3,3954.1,0.3376]
[1758902591499,3.2078,3954.3,3954.0,0.1339]
[1758902592004,0.00288149,3954.3,3954.0,0.1339]
[1758902592300,0.00288149,3954.3,3954.1,0.3376]
[1758902592892,0.45781149,3954.3,3954.1,0.3376]
[1758902593105,0.45495,3954.1,3954.0,0.4715]
[1758902593405,0.45498,3953.8,3953.7,0.3376]
[1758902593599,0.45498,3953.8,3953.7,0.6036]
[1758902593807,0.45498,3953.9,3953.7,0.266]
[1758902594104,0.45498,3953.9,3953.8,0.3376]
[1758902596302,0.45498,3953.9,3953.7,0.266]
[1758902596303,0.00288149,3954.3,3954.1,0.3376]
[1758902596498,0.00288149,3954.3,3954.1,0.45494]
[1758902596696,0.00288149,3954.3,3954.2,5.59977825]
[1758902597098,0.0252,3954.9,3954.7,0.45487]
[1758902597303,0.0252,3954.9,3954.8,5.86577825]
[1758902597498,3.2078,3955.0,3954.8,5.98303825]
[1758902597699,3.2078,3955.0,3954.9,0.3376]
[1758902598001,0.4548,3955.4,3954.8,5.98303825]
[1758902598002,0.45481,3955.3,3955.1,0.3376]
[1758902598197,0.45483,3955.2,3955.1,0.3376]
[1758902598403,0.00251181,3955.3,3955.0,0.1339]
[1758902598603,0.00251181,3955.3,3955.1,0.3376]
[1758902598803,0.00251181,3955.3,3955.1,0.79242]
[1758902599006,0.00251181,3955.3,3955.1,0.3376]
[1758902599298,0.00251181,3955.3,3955.1,0.79242]
[1758902599500,0.00251181,3955.3,3955.1,0.3376]
[1758902599699,0.45732181,3955.3,3955.1,0.3376]
[1758902599896,0.00251181,3955.3,3955.1,0.3376]
[1758902600103,0.00251181,3955.3,3955.0,0.1339]